fUSD/lending_fUSD_20240501
["ID","MTS","AMOUNT","RATE_DAILY","PERIOD"]
[325131939,1714535442027,-500.0,0.00011827,2]
[325131940,1714535442036,-500.0,0.00011827,2]
[325131942,1714535442045,-500.0,0.00011827,2]
[325131944,1714535442055,-506.68284153,0.00011827,2]
[325131947,1714535442065,-500.0,0.00011827,2]
[325131949,1714535442074,-500.0,0.00011827,2]
[325131950,1714535442084,-500.0,0.00011827,2]
[325131952,1714535442098,-531.4709592,0.00011827,2]
[325131955,1714535442107,-615.03,0.00011827,2]
[325131956,1714535442117,-500.0,0.00011827,2]
[325131958,1714535442126,-522.3852354,0.00011827,2]
[325131960,1714535442137,-500.0,0.00011827,2]
[325131962,1714535442146,-500.0,0.00011827,2]
[325131964,1714535442155,-499.2326945,0.00011827,2]
[325131966,1714535442165,-3803.24,0.00011827,2]
[325131968,1714535442175,-500.0,0.00011827,2]
[325131971,1714535442185,-500.0,0.00011827,2]
[325131973,1714535442195,-500.0,0.00011827,2]
[325131975,1714535442204,-500.0,0.00011827,2]
[325131977,1714535442213,-502.76718762,0.00011827,2]
[325131979,1714535442222,-551.72,0.00011827,2]
[325131980,1714535442231,-500.0,0.00011827,2]
[325131982,1714535442241,-504.48421326,0.00011827,2]
[325131985,1714535442250,-500.0,0.00011827,2]
[325131987,1714535442259,-500.0,0.00011827,2]
[325131989,1714535442268,-500.0,0.00011827,2]
[325131991,1714535442278,-173.34,0.00011827,2]
[325131992,1714535442287,-500.0,0.00011827,2]
[325131995,1714535442296,-504.09627603,0.00011827,2]
[325131996,1714535442307,-500.0,0.00011827,2]
[325131999,1714535442316,-500.0,0.00011827,2]
[325132000,1714535442326,-500.0,0.00011827,2]
[325132003,1714535442335,-500.0,0.00011827,2]
[325132005,1714535442344,-508.13357398,0.00011827,2]
[325132007,1714535442354,-500.0,0.00011827,2]
[325132009,1714535442363,-500.0,0.00011827,2]
[325132010,1714535442372,-500.0,0.00011827,2]
[325132012,1714535442381,-506.23565819,0.00011827,2]
[325132014,1714535442391,-568.43,0.00011827,2]
[325132016,1714535442399,-1790.33,0.00011827,2]
[325132018,1714535442408,-299.75189823,0.00011827,2]
[325132028,1714535442460,-3241.21810177,0.00011827,2]
[325132031,1714535442469,-500.0,0.00011827,2]
[325132033,1714535442478,-500.0,0.00011827,2]
[325132035,1714535442487,-510.89,0.00011827,2]
[325132037,1714535442496,-500.0,0.00011827,2]
[325132039,1714535442506,-500.0,0.00011827,2]
[325132041,1714535442515,-505.56057638,0.00011827,2]
[325132042,1714535442523,-500.0,0.00011827,2]
[325132044,1714535442532,-502.35759997,0.00011827,2]
[325132047,1714535442541,-500.0,0.00011827,2]
[325132050,1714535442551,-500.0,0.00011827,2]
[325132053,1714535442560,-500.0,0.00011827,2]
[325132056,1714535442569,-208.73937367,0.00011827,2]
[325132060,1714535442579,-500.0,0.00011827,2]
[325132064,1714535442589,-500.0,0.00011827,2]
[325132068,1714535442598,-506.36461042,0.00011827,2]
[325132072,1714535442608,-500.66666074,0.00011827,2]
[325132077,1714535442616,-508.1152251,0.00011827,2]
[325132082,1714535442626,-500.0,0.00011827,2]
[325132087,1714535442635,-500.0,0.00011827,2]
[325132091,1714535442645,-661.95,0.00011827,2]
[325132095,1714535442654,-500.0,0.00011827,2]
[325132099,1714535442663,-500.57142867,0.00011827,2]
[325132103,1714535442672,-500.0,0.00011827,2]
[325132107,1714535442681,-375.88731411,0.00011827,2]
[325132113,1714535442695,-124.11268589,0.00011827,2]
[325132117,1714535442704,-500.0,0.00011827,2]
[325132121,1714535442714,-500.0,0.00011827,2]
[325132126,1714535442723,-434.44787512,0.00011827,2]
[325132129,1714535442732,-500.0,0.00011827,2]
[325132131,1714535442741,-504.4720075,0.00011827,2]
[325132133,1714535442751,-500.0,0.00011827,2]
[325132135,1714535442760,-500.0,0.00011827,2]
[325132136,1714535442769,-501.30083194,0.00011827,2]
[325132138,1714535442778,-591.51720868,0.00011827,2]
[325132141,1714535442787,-500.0,0.00011827,2]
[325132143,1714535442796,-507.64311744,0.00011827,2]
[325132145,1714535442807,-500.0,0.00011827,2]
[325132147,1714535442816,-1256.79,0.00011827,2]
[325132149,1714535442826,-500.0,0.00011827,2]
[325132151,1714535442836,-500.0,0.00011827,2]
[325132152,1714535442845,-500.0,0.00011827,2]
[325132154,1714535442854,-500.0,0.00011827,2]
[325132156,1714535442863,-500.0,0.00011827,2]
[325132158,1714535442872,-500.0,0.00011827,2]
[325132160,1714535442882,-500.0,0.00011827,2]
[325132162,1714535442891,-175.87887892,0.00011827,2]
[325132165,1714535442900,-500.0,0.00011827,2]
[325132166,1714535442910,-500.0,0.00011827,2]
[325132168,1714535442919,-500.0,0.00011827,2]
[325132170,1714535442929,-502.73871871,0.00011827,2]
[325132172,1714535442938,-497.61688916,0.00011827,2]
[325132182,1714535443017,-2.38311084,0.00011827,2]
[325132184,1714535443027,-325.56015811,0.00011827,2]
[325132218,1714535443342,-174.43984189,0.00011827,2]
[325132220,1714535443351,-499.32515015,0.00011827,2]
[325132223,1714535443361,-500.0,0.00011827,2]
[325132225,1714535443370,-1095.17,0.00011827,2]
[325132227,1714535443379,-500.0,0.00011827,2]
[325132229,1714535443388,-500.0,0.00011827,2]
[325132230,1714535443398,-500.0,0.00011827,2]
[325132233,1714535443407,-569.22,0.00011827,2]
[325132235,1714535443416,-500.0,0.00011827,2]
[325132236,1714535443425,-500.0,0.00011827,2]
[325132238,1714535443434,-583.4376272,0.00011827,2]
[325132240,1714535443443,-500.0,0.00011827,2]
[325132242,1714535443452,-500.0,0.00011827,2]
[325132245,1714535443461,-500.0,0.00011827,2]
[325132247,1714535443470,-500.0,0.00011827,2]
[325132249,1714535443479,-500.0,0.00011827,2]
[325132250,1714535443488,-500.9494808,0.00011827,2]
[325132252,1714535443497,-500.0,0.00011827,2]
[325132254,1714535443506,-500.0,0.00011827,2]
[325132256,1714535443515,-500.0,0.00011827,2]
[325132258,1714535443524,-500.0,0.00011827,2]
[325132261,1714535443534,-2357.45789996,0.00011827,2]
[325133398,1714535457371,-1000.0,0.00011827,2]
[325133399,1714535457397,-1590.25018345,0.00011827,2]
[325133400,1714535457408,-2189.40191659,0.00011827,2]
[325133401,1714535457417,-500.0,0.00011827,2]
[325133402,1714535457427,-398.11098623,0.00011827,2]
[325133431,1714535711249,-153.44759758,0.0001049,2]
[325133432,1714535711271,-402.53560211,0.00010501,2]
[325133433,1714535711290,-44.01680031,0.00010507,2]
[325133463,1714535946353,158.47,8.486e-05,2]
[325133479,1714536133001,-155.0,0.00025,60]
[325133480,1714536133033,-155.0,0.0002565,30]
[325133481,1714536133059,-186.09251947,0.00027,120]
[325133482,1714536133086,-1208.0,0.00027494,30]
[325133483,1714536133111,-2000.0,0.000284,120]
[325133484,1714536133136,-10440.97789176,0.000285,120]
[325133485,1714536133161,-1200.0,0.00029,30]
[325133486,1714536133187,-1385.18502908,0.0003,60]
[325133487,1714536133210,-1200.0,0.0003,31]
[325133488,1714536133233,-1664.2529793,0.0003,120]
[325133489,1714536133255,-322.27750915,0.0003,120]
[325133490,1714536133280,-1200.0,0.00031,32]
[325133491,1714536133307,-1200.0,0.00032,33]
[325133492,1714536133333,-8016.01395601,0.000329,30]
[325133493,1714536133357,-515.52007742,0.00033,120]
[325133494,1714536133380,-1200.0,0.00033,34]
[325133495,1714536133405,-336.0,0.00033861,120]
[325133496,1714536133428,-9878.12,0.00034,30]
[325133497,1714536133452,-8483.46186448,0.00034,120]
[325133498,1714536133475,-336.0,0.00034525,120]
[325133499,1714536133498,-500.0,0.00034794,31]
[325133500,1714536133520,-500.0,0.00034794,31]
[325133501,1714536133546,-502.32262613,0.00034794,31]
[325133502,1714536133569,-1000.0,0.00035,120]
[325133503,1714536133592,-672.01178114,0.00035,30]
[325133504,1714536133615,-11874.35724821,0.00035,30]
[325133505,1714536133639,-3925.14928986,0.00035,60]
[325133506,1714536133662,-1666.19787824,0.00035,30]
[325133507,1714536133686,-6674.49075128,0.000351,30]
[325133508,1714536133708,-336.0,0.00035189,120]
[325133509,1714536133731,-2123.51958856,0.000356,30]
[325133510,1714536133754,-336.0,0.00035853,120]
[325133511,1714536133777,-4281.84,0.0003589,120]
[325133512,1714536133799,-3037.62,0.00036,30]
[325133513,1714536133822,-268.1,0.00036329,30]
[325133514,1714536133845,-336.0,0.00036517,120]
[325133515,1714536133867,-8013.1050638,0.000366,30]
[325133516,1714536133893,-5000.0,0.0003669,30]
[325133517,1714536133919,-8362.89862262,0.00036986,120]
[325133518,1714536133942,-1369.34070749,0.00037,60]
[325133519,1714536133966,-5625.0,0.00037,60]
[325133520,1714536133990,-462.8,0.00037099,30]
[325133521,1714536134013,-336.0,0.00037181,120]
[325133522,1714536134037,-268.1,0.00037294,30]
[325133523,1714536134063,-7999.0,0.00037777,120]
[325133524,1714536134086,-336.0,0.00037845,120]
[325133525,1714536134109,-75931.40477956,0.000379,40]
[325133526,1714536134133,-2000.0,0.00038,120]
[325133527,1714536134158,-1967.77629318,0.00038,120]
[325133528,1714536134181,-4686.16,0.00038,30]
[325133529,1714536134205,-2459.52910917,0.00038,30]
[325133530,1714536134230,-502.81271337,0.00038356,30]
[325133531,1714536134254,-500.0,0.00038356,30]
[325133532,1714536134278,-268.1,0.00038387,60]
[325133533,1714536134301,-336.0,0.00038509,120]
[325133534,1714536134331,-200.05219972,0.000388,120]
[325133535,1714536134354,-464.85239409,0.000388,120]
[325133536,1714536134379,-268.1,0.00038855,60]
[325133537,1714536134406,-366.15323607,0.000389,30]
[325133538,1714536134429,-1259.54681031,0.000389,30]
[325133539,1714536134452,-1347.67676338,0.000389,120]
[325133540,1714536134476,-8362.89862262,0.00038986,120]
[325133541,1714536134500,-10000.0,0.00039,30]
[325133542,1714536134523,-10000.0,0.00039,30]
[325133543,1714536134547,-363.94,0.00039,30]
[325133544,1714536134570,-1000.0,0.00039,30]
[325133545,1714536134594,-1000.0,0.00039,30]
[325133546,1714536134617,-1000.0,0.00039,30]
[325133547,1714536134845,-1000.0,0.00039,30]
[325133548,1714536134870,-1000.0,0.00039,30]
[325133549,1714536134897,-1000.0,0.00039,30]
[325133550,1714536134921,-1000.0,0.00039,30]
[325133551,1714536134945,-1000.0,0.00039,30]
[325133552,1714536134968,-1000.0,0.00039,30]
[325133553,1714536134991,-1000.0,0.00039,30]
[325133554,1714536135014,-1000.0,0.00039,30]
[325133555,1714536135038,-1000.0,0.00039,30]
[325133556,1714536135064,-1000.0,0.00039,30]
[325133557,1714536135087,-1000.0,0.00039,30]
[325133558,1714536135113,-1000.0,0.00039,30]
[325133559,1714536135137,-1000.0,0.00039,30]
[325133560,1714536135161,-1000.0,0.00039,30]
[325133561,1714536135185,-1000.0,0.00039,30]
[325133562,1714536135210,-1000.0,0.00039,30]
[325133563,1714536135233,-1000.0,0.00039,30]
[325133564,1714536135258,-948.58,0.00039,30]
[325133565,1714536135282,-1600.0,0.00039,30]
[325133566,1714536135308,-2500.84,0.00039,120]
[325133567,1714536135333,-260.02873423,0.00039,120]
[325133568,1714536135355,-2100.11922047,0.00039,30]
[325133569,1714536135380,-500000.0,0.00039,35]
[325133570,1714536135404,-190446.7833342,0.00039,30]
[325133571,1714536135428,-336.0,0.00039173,120]
[325133572,1714536135451,-8523.94191335,0.00039234,31]
[325133573,1714536135475,-5000.0,0.0003945,30]
[325133574,1714536135500,-203.33251,0.00039451,30]
[325133575,1714536135528,-462.8,0.0003946,60]
[325133576,1714536135550,-1034.58,0.000395,120]
[325133577,1714536135574,-797.62213774,0.000397,60]
[325133578,1714536135597,-538.77,0.00039726,30]
[325133579,1714536135620,-500.0,0.00039726,30]
[325133580,1714536135643,-1000.0,0.00039726,30]
[325133581,1714536135666,-190.29,0.00039726,30]
[325133582,1714536135689,-1140.69,0.00039726,30]
[325133583,1714536135712,-1134.86618603,0.00039726,30]
[325133584,1714536135734,-1068.48,0.00039726,30]
[325133585,1714536135756,-1023.96,0.00039726,30]
[325133586,1714536135780,-981.3,0.00039726,30]
[325133587,1714536135802,-940.41,0.00039726,30]
[325133588,1714536135826,-5121.53358038,0.000398,60]
[325133589,1714536135849,-4946.65639842,0.000398,120]
[325133590,1714536135871,-341.98673411,0.00039837,120]
[325133591,1714536135894,-405.0,0.00039986,120]
[325133592,1714536135918,-328.6249583,0.00039999,30]
[325133593,1714536135946,-100000.0,0.0004,40]
[325133594,1714536135969,-1000.0,0.0004,120]
[325133595,1714536135992,-7395.58389844,0.0004,60]
[325133596,1714536136015,-11000.0,0.0004,120]
[325133597,1714536136039,-1177.97290225,0.0004,50]
[325133598,1714536136075,-286.77139094,0.0004,120]
[325133599,1714536136100,-1071.48081855,0.0004,30]
[325133600,1714536136126,-855.89674503,0.0004,120]
[325133601,1714536136149,-15840.39916704,0.0004,120]
[325133602,1714536136174,-375.22888851,0.0004,30]
[325133603,1714536136198,-1022.25519145,0.0004,30]
[325133604,1714536136223,-408.55490374,0.0004,30]
[325133605,1714536136247,-828.7465469,0.0004,30]
[325133606,1714536136271,-230.3479937,0.0004,30]
[325133607,1714536136300,-889.0,0.0004,30]
[325133608,1714536136328,-950.0,0.0004,55]
[325133609,1714536136352,-1000.0,0.0004,120]
[325133610,1714536136377,-2008.0,0.0004,30]
[325133611,1714536136403,-2558.68758553,0.0004,120]
[325133612,1714536136427,-200.0,0.0004,120]
[325133613,1714536136450,-631.22705402,0.0004,30]
[325133614,1714536136477,-531.0,0.0004,31]
[325133615,1714536136501,-2000.0,0.0004,120]
[325133616,1714536136526,-68136.63241768,0.0004,30]
[325133617,1714536136550,-304.0,0.0004,30]
[325133618,1714536136573,-500000.0,0.0004,35]
[325133619,1714536136598,-16528.0,0.0004,30]
[325133620,1714536136622,-10000.0,0.0004,30]
[325133621,1714536136648,-20000.0,0.0004,30]
[325133622,1714536136672,-10000.0,0.0004,30]
[325133623,1714536136695,-3272.95542561,0.0004,30]
[325133624,1714536136718,-2500.0,0.0004,120]
[325133625,1714536136741,-2500.0,0.0004,120]
[325133626,1714536136763,-2500.0,0.0004,120]
[325133627,1714536136787,-2500.0,0.0004,120]
[325133628,1714536136810,-2500.0,0.0004,120]
[325133629,1714536136833,-2500.0,0.0004,120]
[325133630,1714536136856,-2500.0,0.0004,120]
[325133631,1714536136880,-2500.0,0.0004,120]
[325133632,1714536136902,-2500.0,0.0004,120]
[325133633,1714536136925,-2500.0,0.0004,120]
[325133634,1714536136948,-2500.0,0.0004,120]
[325133635,1714536136970,-2500.0,0.0004,120]
[325133636,1714536136993,-2500.0,0.0004,120]
[325133637,1714536137015,-1980.8269058,0.0004,120]
[325133638,1714536137039,-35000.00000101,0.0004,30]
[325133639,1714536137061,-5000.0,0.0004,120]
[325133640,1714536137084,-5000.0,0.0004,120]
[325133641,1714536137106,-5000.0,0.0004,120]
[325133642,1714536137131,-5000.0,0.0004,120]
[325133643,1714536137154,-6411.0,0.0004,120]
[325133644,1714536137177,-1179.89202812,0.0004,120]
[325133645,1714536137201,-2875.59240926,0.0004,30]
[325133646,1714536137224,-4338.31294854,0.0004,30]
[325133647,1714536137247,-122082.84500233,0.0004,90]
[325133648,1714536137270,-5106.56729333,0.0004,30]
[325133649,1714536137293,-1374.35276339,0.0004,120]
[325133650,1714536137319,-4219.43094751,0.0004,30]
[325133651,1714536137520,-11744.21313,0.00040088,30]
[325133652,1714536137544,-10000.0,0.000401,30]
[325133653,1714536137566,-12537.0,0.0004015,120]
[325133654,1714536137590,-1983.01460817,0.00040258,40]
[325133655,1714536137613,-412.58720614,0.00040258,40]
[325133656,1714536137636,-167.72362828,0.00040258,35]
[325133657,1714536137659,-5000.0,0.00040258,40]
[325133658,1714536137681,-4911.2941353,0.00040258,40]
[325133659,1714536137704,-150.0,0.00040258,40]
[325133660,1714536137726,-11744.21313,0.00040288,30]
[325133661,1714536137748,-4849.13014268,0.000403,60]
[325133662,1714536137773,-6188.6,0.00040327,79]
[325133663,1714536137798,-215.02290826,0.00040342,30]
[325133664,1714536137820,-562.95901809,0.00040342,120]
[325133665,1714536137842,-6000.001001,0.000404,60]
[325133666,1714536137864,-11744.21313,0.00040488,30]
[325133667,1714536137886,-2647.0413197,0.00040498,45]
[325133668,1714536137909,-1110.0,0.000405,120]
[325133669,1714536137931,-500000.0,0.000405,40]
[325133670,1714536137954,-268.1,0.00040564,120]
[325133671,1714536137977,-502.0,0.000406,120]
[325133672,1714536138000,-109535.63534024,0.000406,30]
[325133673,1714536138024,-11744.21313,0.00040688,30]
[325133674,1714536138047,-1266361.52293076,0.0004069,30]
[325133675,1714536142316,158.8767796,9.642e-05,2]
[325133676,1714536142445,153.95652189,6.853e-05,2]
[325133677,1714536142928,153.95652189,8.797e-05,2]
[325133678,1714536143627,157.04751359,6.453e-05,2]
[325133679,1714536143772,174.43785108,6.795e-05,2]
[325133680,1714536144292,-137996.47706924,0.0004069,30]
[325133681,1714536144318,-478.7011411,0.000408,30]
[325133682,1714536144341,-792.09621527,0.000409,60]
[325133683,1714536144365,-1168.32827985,0.000409,33]
[325133684,1714536144391,-8655.74993543,0.000409,33]
[325133685,1714536144417,-169.29037671,0.000409,60]
[325133686,1714536144440,-1701.57757657,0.00040972,120]
[325133687,1714536144462,-8362.89862262,0.00040986,120]
[325133688,1714536144487,-100000.0,0.00041,41]
[325133689,1714536144512,-875.93,0.00041,30]
[325133690,1714536144536,-228.41,0.00041,30]
[325133691,1714536144562,-1055.65748177,0.00041,30]
[325133692,1714536144585,-666.5795408,0.00041,120]
[325133693,1714536144608,-25910.26210353,0.00041,120]
[325133694,1714536144633,-537.0,0.00041,30]
[325133695,1714536144655,-308.0,0.00041,30]
[325133696,1714536144677,-829.0,0.00041,30]
[325133697,1714536144700,-2000.0,0.00041,120]
[325133698,1714536144722,-736.14,0.00041,120]
[325133699,1714536144744,-500000.0,0.00041,40]
[325133700,1714536144766,-6771.46252741,0.00041,60]
[325133701,1714536144793,-11744.21313,0.00041088,30]
[325133702,1714536144815,-5000.0,0.0004109,30]
[325133703,1714536144837,-510.0,0.00041095,120]
[325133704,1714536144860,-1000.0,0.00041095,30]
[325133705,1714536144885,-1000.0,0.00041095,30]
[325133706,1714536144907,-1000.0,0.00041095,30]
[325133707,1714536144929,-1000.0,0.00041095,30]
[325133708,1714536144952,-341.54593246,0.00041095,30]
[325133709,1714536144973,-1559.77987508,0.00041095,30]
[325133710,1714536144995,-187.0,0.00041096,120]
[325133711,1714536145018,-198.07468366,0.000411,60]
[325133712,1714536145040,-9124.37188545,0.000411,120]
[325133713,1714536145063,-268.1,0.00041111,120]
[325133714,1714536145086,-1900.0,0.00041229,30]
[325133715,1714536145108,-11744.21313,0.00041288,30]
[325133716,1714536145134,-510.0,0.00041369,120]
[325133717,1714536145156,-11744.21313,0.00041488,30]
[325133718,1714536145179,-260.0,0.000415,30]
[325133719,1714536145202,-1033.0,0.00041564,30]
[325133720,1714536145226,-510.0,0.00041643,120]
[325133721,1714536145249,-11744.21313,0.00041688,30]
[325133722,1714536145273,-327.56573193,0.00041777,30]
[325133723,1714536145296,-577.27086716,0.00041917,120]
[325133724,1714536145323,-200.0,0.00041992,30]
[325133725,1714536145345,-200.0,0.00041992,30]
[325133726,1714536145367,-207.0,0.00041992,30]
[325133727,1714536145392,-200.0,0.00041992,30]
[325133728,1714536145415,-200.0,0.00041992,30]
[325133729,1714536145436,-200.0,0.00041992,30]
[325133730,1714536145459,-200.0,0.00041992,30]
[325133731,1714536145482,-200.0,0.00041992,30]
[325133732,1714536145505,-200.0,0.00041992,30]
[325133733,1714536145529,-200.0,0.00041992,30]
[325133734,1714536145553,-200.0,0.00041992,30]
[325133735,1714536145577,-200.0,0.00041992,30]
[325133736,1714536145600,-200.0,0.00041992,30]
[325133737,1714536145624,-200.0,0.00041992,30]
[325133738,1714536145828,-200.0,0.00041992,30]
[325133739,1714536145851,-200.0,0.00041992,30]
[325133740,1714536145873,-200.0,0.00041992,30]
[325133741,1714536145896,-200.0,0.00041992,30]
[325133742,1714536145918,-200.0,0.00041992,30]
[325133743,1714536145939,-200.0,0.00041992,30]
[325133744,1714536145961,-200.0,0.00041992,30]
[325133745,1714536145983,-200.0,0.00041992,30]
[325133746,1714536146005,-200.0,0.00041992,30]
[325133747,1714536146028,-200.0,0.00041992,30]
[325133748,1714536146056,-200.0,0.00041992,30]
[325133749,1714536146079,-200.0,0.00041992,30]
[325133750,1714536146102,-251.0,0.00041992,30]
[325133751,1714536146127,-100000.0,0.00042,42]
[325133752,1714536146152,-5224.36078,0.00042,30]
[325133753,1714536146176,-3159.3928943,0.00042,120]
[325133754,1714536146200,-2000.0,0.00042,120]
[325133755,1714536146223,-1150.0,0.00042,60]
[325133756,1714536146247,-30000.0,0.00042,120]
[325133757,1714536146270,-260.0,0.00042,30]
[325133758,1714536146293,-20000.0,0.00042,30]
[325133759,1714536146323,-500471.56,0.00042,30]
[325133760,1714536146349,-965.5736339,0.00042,120]
[325133761,1714536146372,-2711.04405199,0.00042,30]
[325133762,1714536146396,-3000.0,0.00042,30]
[325133763,1714536146419,-2500.0,0.00042345,120]
[325133764,1714536146443,-228.15060071,0.000424,120]
[325133765,1714536146470,-260.0,0.000425,30]
[325133766,1714536146493,-30000.0,0.000425,50]
[325133767,1714536146517,-8362.89862262,0.00042986,120]
[325133768,1714536146540,-500.0,0.00042999,120]
[325133769,1714536146564,-100000.0,0.00043,43]
[325133770,1714536146586,-20000.0,0.00043,120]
[325133771,1714536146610,-8619.24250225,0.00043,30]
[325133772,1714536146636,-7390.0,0.00043,120]
[325133773,1714536146658,-260.0,0.00043,30]
[325133774,1714536146681,-20000.0,0.00043,60]
[325133775,1714536146703,-20000.0,0.00043,120]
[325133776,1714536146725,-279178.26,0.00043,120]
[325133777,1714536146747,-178.96,0.00043014,120]
[325133778,1714536146770,-2499.97,0.000435,120]
[325133779,1714536146792,-252.78,0.000435,30]
[325133780,1714536146815,-1177.97075984,0.000435,120]
[325133781,1714536146838,-1033.0,0.00043642,30]
[325133782,1714536146860,-6751.2,0.00043653,98]
[325133783,1714536146883,-1000000.0,0.0004369,120]
[325133784,1714536146904,-345.13254253,0.000437,120]
[325133785,1714536146927,-2690.08368128,0.00043715,30]
[325133786,1714536146949,-459.34650019,0.000438,30]
[325133787,1714536146972,-865.55,0.000438,60]
[325133788,1714536146994,-513.97833881,0.00043835,30]
[325133789,1714536147211,174.43785108,7.365e-05,2]
[325133790,1714536147369,174.43785108,7.879e-05,2]
[325133791,1714536147423,159.75363845,7.688e-05,2]
[325133792,1714536147492,4252.51,0.00043835,120]
[325133793,1714536147528,174.43785108,8.271e-05,2]
[325133794,1714536147580,159.75363845,7.927e-05,2]
[325133795,1714536147663,174.43785108,8.284e-05,2]
[325133796,1714536147764,159.75363845,8.999e-05,2]
[325133797,1714536147831,267.43,0.00041152,30]
[325133798,1714536147949,159.75363845,9.112e-05,2]
[325133799,1714536149408,155.46192522,7.95e-05,2]
[325133800,1714536149642,154.66083297,8.011e-05,2]
[325133801,1714536150110,155.46192522,8.061e-05,2]
[325133802,1714536150148,154.77231304,6.356e-05,2]
[325133803,1714536150187,154.66083297,9.348e-05,2]
[325133804,1714536150674,155.2186922,8.901e-05,2]
[325133805,1714536150713,154.20669729,7.36e-05,2]
[325133806,1714536150837,154.66083297,9.411e-05,2]
[325133807,1714536150952,8196.689699,0.000329,30]
[325133808,1714536151025,154.20669729,7.539e-05,2]
[325133809,1714536151879,154.20889232,7.348e-05,2]
[325133810,1714536152392,154.20889232,7.68e-05,2]
[325133811,1714536153101,154.20669729,8.824e-05,2]
[325133812,1714536153617,154.20669729,8.866e-05,2]
[325133813,1714536160112,1511.57941667,0.000389,30]
[325133819,1714536409107,157.06,8.522e-05,2]
[325133822,1714536435729,159.60208042,9.342e-05,2]
[325133823,1714536436203,389.11774871,6.428e-05,2]
[325133824,1714536436723,389.11774871,6.465e-05,2]
[325133825,1714536437246,389.11774871,7.623e-05,2]
[325133826,1714536437872,389.11774871,7.778e-05,2]
[325133827,1714536438355,389.11774871,8.169e-05,2]
[325133828,1714536438889,389.11774871,8.572e-05,2]
[325133830,1714536439904,153.44759758,6.342e-05,2]
[325133831,1714536439945,389.11774871,8.923e-05,2]
[325133832,1714536440784,153.44759758,6.418e-05,2]
[325133833,1714536440835,389.11774871,9.445e-05,2]
[325133834,1714536440977,153.44759758,9.461e-05,2]
[325133835,1714536441060,300.82598677,6.022e-05,2]
[325133836,1714536441931,155.36168259,6.45e-05,2]
[325133837,1714536442116,300.82598677,7.968e-05,2]
[325133838,1714536442713,155.36168259,9.14e-05,2]
[325133839,1714536442774,300.82598677,8.181e-05,2]
[325133840,1714536442914,155.36168259,9.639e-05,2]
[325133841,1714536443140,300.82598677,8.332e-05,2]
[325133842,1714536443666,300.82598677,8.789e-05,2]
[325133844,1714536446934,153.9565219,9.589e-05,2]
[325133845,1714536447307,158.43315543,6.248e-05,2]
[325133846,1714536447598,155.78528379,6.533e-05,2]
[325133847,1714536448139,155.78528379,8.868e-05,2]
[325133848,1714536448681,155.78528379,9.388e-05,2]
[325133849,1714536449915,154.66083298,7.476e-05,2]
[325133850,1714536450370,159.75363846,6.574e-05,2]
[325133851,1714536450434,154.66083298,8.794e-05,2]
[325133852,1714536451323,155.51607718,7.001e-05,2]
[325133853,1714536452056,155.46192523,6e-05,2]
[325133854,1714536452560,155.46192523,8.628e-05,2]
[325133855,1714536452970,154.2066973,7.004e-05,2]
[325133856,1714536453121,154.20889232,8.733e-05,2]
[325133857,1714536453151,150.37745783,7.344e-05,2]
[325133858,1714536453654,154.20889232,9.053e-05,2]
[325133859,1714536453683,150.37745783,7.653e-05,2]
[325133860,1714536454027,154.2066973,7.456e-05,2]
[325133861,1714536454148,150.37745783,7.878e-05,2]